[Event "Couzeix rapide 9 rondes cadences multiples"]
[Site "Couzeix Chess Club, France"]
[Date "2019.03.10"]
[Round "3.4"]
[White "Brun, Pierre"]
[Black "Besse, Florian"]
[Result "0-1"]
[TimeControl "5'+10''pm,  7'+10''pm, 10'+10''pm,"]
[WhiteElo "1684"]
[BlackElo "1762"]

1. Nf3 {[%clk 00:05:17]} {[%emt 00:00:02]} e6 {[%clk 00:05:10]} {[%emt
00:00:11]} 2. c4 {[%clk 00:05:26]} {[%emt 00:00:01]} c6 {[%clk 00:05:10]}
{[%emt 00:00:10]} 3. g3 {[%clk 00:05:26]} {[%emt 00:00:09]} Nf6 {[%clk
00:05:16]} {[%emt 00:00:04]} 4. Bg2 {[%clk 00:05:34]} {[%emt 00:00:01]} d5
{[%clk 00:05:25]} {[%emt 00:00:02]} 5. O-O {[%clk 00:04:55]} {[%emt 00:00:49]}
Nbd7 {[%clk 00:05:17]} {[%emt 00:00:17]} 6. d4 {[%clk 00:05:00]} {[%emt
00:00:05]} Be7 {[%clk 00:05:25]} {[%emt 00:00:03]} 7. Nc3 {[%clk 00:05:08]}
{[%emt 00:00:03]} Qc7 {[%clk 00:05:19]} {[%emt 00:00:16]} 8. cxd5 {[%clk
00:04:37]} {[%emt 00:00:41]} exd5 {[%clk 00:05:27]} {[%emt 00:00:02]} 9. Re1
{[%clk 00:04:20]} {[%emt 00:00:27]} Nb6 {[%clk 00:05:18]} {[%emt 00:00:19]} 10.
e4 {[%clk 00:04:12]} {[%emt 00:00:17]} dxe4 {[%clk 00:05:21]} {[%emt 00:00:07]}
11. Nxe4 {[%clk 00:04:17]} {[%emt 00:00:05]} Nxe4 {[%clk 00:05:29]} {[%emt
00:00:02]} 12. Rxe4 {[%clk 00:04:22]} {[%emt 00:00:04]} Bf5 {[%clk 00:05:33]}
{[%emt 00:00:06]} 13. Re5 {[%clk 00:04:20]} {[%emt 00:00:13]} Bg4 {[%clk
00:05:32]} {[%emt 00:00:11]} 14. Bf4 {[%clk 00:04:08]} {[%emt 00:00:20]} O-O-O
{[%clk 00:05:22]} {[%emt 00:00:20]} 15. Qd3 {[%clk 00:03:04]} {[%emt 00:01:14]}
Bd6 {[%clk 00:05:20]} {[%emt 00:00:13]} 16. Rg5 {[%clk 00:02:10]} {[%emt
00:01:04]} h5 {[%clk 00:05:28]} {[%emt 00:00:02]} 17. h3 {[%clk 00:01:30]}
{[%emt 00:00:50]} Bxf4 {[%clk 00:05:30]} {[%emt 00:00:08]} 18. hxg4 {[%clk
00:00:50]} {[%emt 00:00:49]} Bxg5 {[%clk 00:05:32]} {[%emt 00:00:07]} 19. Qf5+
{[%clk 00:00:53]} {[%emt 00:00:07]} Qd7 {[%clk 00:05:34]} {[%emt 00:00:09]} 20.
Nxg5 {[%clk 00:00:38]} {[%emt 00:00:24]} Qxf5 {[%clk 00:05:30]} {[%emt
00:00:14]} 21. gxf5 {[%clk 00:00:47]} Rd7 {[%clk 00:05:39]} {[%emt 00:00:02]}
22. Bh3 {[%clk 00:00:52]} {[%emt 00:00:05]} f6 {[%clk 00:05:48]} {[%emt
00:00:01]} 23. Ne6 {[%clk 00:01:00]} {[%emt 00:00:03]} Nd5 {[%clk 00:05:44]}
{[%emt 00:00:13]} 24. Nc5 {[%clk 00:01:06]} {[%emt 00:00:04]} Re7 {[%clk
00:05:47]} {[%emt 00:00:08]} 25. Bg2 {[%clk 00:01:13]} {[%emt 00:00:03]} h4
{[%clk 00:05:55]} {[%emt 00:00:02]} 26. Bxd5 {[%clk 00:01:05]} {[%emt
00:00:19]} cxd5 {[%clk 00:06:04]} {[%emt 00:00:01]} 27. g4 {[%clk 00:01:14]}
{[%emt 00:00:01]} Re2 {[%clk 00:05:51]} {[%emt 00:00:23]} 28. b3 {[%clk
00:01:09]} {[%emt 00:00:15]} h3 {[%clk 00:06:00]} {[%emt 00:00:01]} 29. Ne6
{[%clk 00:01:08]} {[%emt 00:00:11]} h2+ {[%clk 00:05:39]} {[%emt 00:00:30]} 30.
Kh1 {[%clk 00:01:17]} {[%emt 00:00:01]} Rxf2 {[%clk 00:05:40]} {[%emt
00:00:09]} 31. Rc1+ {[%clk 00:01:25]} {[%emt 00:00:01]} Kd7 {[%clk 00:05:50]}
{[%emt 00:00:01]} 32. Nc5+ {[%clk 00:01:19]} {[%emt 00:00:17]} Kd6 {[%clk
00:05:42]} {[%emt 00:00:18]} 33. Nxb7+ {[%clk 00:01:26]} {[%emt 00:00:03]} Kd7
{[%clk 00:05:51]} {[%emt 00:00:01]} 34. Nc5+ {[%clk 00:01:34]} {[%emt
00:00:02]} Ke7 {[%clk 00:05:47]} {[%emt 00:00:13]} 35. Re1+ {[%clk 00:01:40]}
{[%emt 00:00:03]} Kf7 {[%clk 00:05:52]} {[%emt 00:00:05]} 36. Ne6 {[%clk
00:01:36]} {[%emt 00:00:14]} Rh4 {[%clk 00:05:50]} {[%emt 00:00:12]} 37. Nd8+
{[%clk 00:01:33]} {[%emt 00:00:13]} Kg8 {[%clk 00:05:55]} {[%emt 00:00:06]} 38.
Nc6 {[%clk 00:01:14]} {[%emt 00:00:29]} Rxg4 {[%clk 00:05:51]} {[%emt
00:00:14]} 39. Ne7+ {[%clk 00:01:23]} Kf7 {[%clk 00:05:51]} {[%emt 00:00:10]}
40. Nxd5 {[%clk 00:01:31]} {[%emt 00:00:02]} Rfg2 {[%clk 00:05:57]} {[%emt
00:00:04]} 41. Re7+ {[%clk 00:01:28]} {[%emt 00:00:13]} Kg8 {[%clk 00:06:06]}
{[%emt 00:00:01]} 42. Rxa7 {[%clk 00:01:24]} {[%emt 00:00:13]} Rb2 {[%clk
00:06:02]} {[%emt 00:12:02]} 43. Ra8+ {[%clk 00:01:22]} Kh7 {[%clk 00:06:11]}
44. Nxf6+ {[%clk 00:00:58]} gxf6 {[%clk 00:06:17]} 45. Ra7+ {[%clk 00:01:07]}
Kh6 {[%clk 00:06:24]} 46. Ra6 {[%clk 00:00:45]} Rg1# {[%clk 00:06:20]} 0-1

[Event "Couzeix rapide 9 rondes cadences multiples"]
[Site "Couzeix Chess Club, France"]
[Date "2019.03.10"]
[Round "4.1"]
[White "Seddik, Houssem"]
[Black "Dubreuil, Remy"]
[Result "0-1"]
[TimeControl "5'+10''pm,  7'+10''pm, 10'+10''pm,"]
[WhiteElo "1492"]
[BlackElo "1714"]

1. e4 {[%clk 00:07:19]} {[%emt 00:00:42]} e6 {[%clk 00:07:18]} {[%emt
00:00:02]} 2. d3 {[%clk 00:07:26]} {[%emt 00:00:04]} d5 {[%clk 00:07:24]}
{[%emt 00:00:04]} 3. Nd2 {[%clk 00:07:35]} {[%emt 00:00:02]} Nf6 {[%clk
00:07:32]} {[%emt 00:00:01]} 4. Ngf3 {[%clk 00:07:44]} {[%emt 00:00:01]} Be7
{[%clk 00:07:39]} {[%emt 00:00:02]} 5. g3 {[%clk 00:07:53]} {[%emt 00:00:02]}
O-O {[%clk 00:07:46]} {[%emt 00:00:02]} 6. Bg2 {[%clk 00:08:02]} c5 {[%clk
00:07:51]} {[%emt 00:00:05]} 7. O-O {[%clk 00:08:06]} {[%emt 00:00:07]} Nc6
{[%clk 00:07:59]} {[%emt 00:00:02]} 8. Re1 {[%clk 00:08:02]} {[%emt 00:00:13]}
Qc7 {[%clk 00:08:00]} {[%emt 00:00:09]} 9. Nf1 {[%clk 00:07:50]} {[%emt
00:00:22]} dxe4 {[%clk 00:07:49]} {[%emt 00:00:21]} 10. dxe4 {[%clk 00:07:39]}
{[%emt 00:00:21]} e5 {[%clk 00:07:42]} {[%emt 00:00:16]} 11. c3 {[%clk
00:06:55]} {[%emt 00:00:55]} Bg4 {[%clk 00:07:47]} {[%emt 00:00:05]} 12. Qe2
{[%clk 00:06:01]} {[%emt 00:01:05]} Rad8 {[%clk 00:07:37]} {[%emt 00:00:20]} 13.
h4 {[%clk 00:05:41]} {[%emt 00:00:29]} Qc8 {[%clk 00:07:17]} {[%emt 00:00:29]}
14. Ne3 {[%clk 00:05:14]} {[%emt 00:00:38]} Be6 {[%clk 00:07:13]} {[%emt
00:00:15]} 15. Ng5 {[%clk 00:05:07]} {[%emt 00:00:17]} Bg4 {[%clk 00:06:22]}
{[%emt 00:01:00]} 16. f3 {[%clk 00:04:27]} {[%emt 00:00:51]} Be6 {[%clk
00:06:17]} {[%emt 00:00:14]} 17. Nxe6 Qxe6 {[%clk 00:06:24]} 18. Nf5 {[%clk
00:04:26]} {[%emt 00:00:02]} Kh8 {[%clk 00:05:34]} {[%emt 00:00:59]} 19. Bh3
{[%clk 00:03:35]} {[%emt 00:01:02]} g6 {[%clk 00:05:25]} {[%emt 00:00:18]} 20.
Nxe7 {[%clk 00:03:36]} {[%emt 00:00:09]} Qxh3 {[%clk 00:05:05]} {[%emt
00:00:30]} 21. Nxc6 {[%clk 00:03:25]} {[%emt 00:00:22]} Qxg3+ {[%clk 00:05:04]}
{[%emt 00:00:09]} 22. Qg2 {[%clk 00:03:33]} {[%emt 00:00:03]} Qxe1+ {[%clk
00:05:11]} {[%emt 00:00:03]} 23. Kh2 {[%clk 00:03:39]} {[%emt 00:00:04]} Qxh4+
{[%clk 00:05:16]} {[%emt 00:00:05]} 24. Kg1 {[%clk 00:03:45]} {[%emt 00:00:05]}
Rd1+ {[%clk 00:05:24]} {[%emt 00:00:02]} 0-1

[Event "Couzeix rapide 9 rondes cadences multiples"]
[Site "Couzeix Chess Club, France"]
[Date "2019.03.10"]
[Round "4.2"]
[White "Girel, Joseph"]
[Black "Besse, Florian"]
[Result "1-0"]
[TimeControl "5'+10''pm,  7'+10''pm, 10'+10''pm,"]
[WhiteElo "2220"]
[BlackElo "1762"]

1. e4 {[%clk 00:07:17]} {[%emt 00:00:02]} e6 {[%clk 00:07:15]} {[%emt
00:00:07]} 2. d4 {[%clk 00:07:26]} {[%emt 00:00:03]} d5 {[%clk 00:07:24]} 3.
exd5 {[%clk 00:07:32]} {[%emt 00:00:02]} exd5 {[%clk 00:07:30]} {[%emt
00:00:04]} 4. Nf3 {[%clk 00:07:40]} Bd6 {[%clk 00:07:32]} {[%emt 00:00:08]} 5.
c4 {[%clk 00:07:49]} {[%emt 00:00:02]} dxc4 {[%clk 00:07:34]} {[%emt 00:00:09]}
6. Bxc4 {[%clk 00:07:57]} Ne7 {[%clk 00:07:35]} {[%emt 00:00:09]} 7. Ng5 {[%clk
00:08:06]} {[%emt 00:00:02]} O-O {[%clk 00:07:09]} {[%emt 00:00:36]} 8. Qh5
{[%clk 00:08:14]} {[%emt 00:00:01]} Bf5 {[%clk 00:06:44]} {[%emt 00:00:36]} 9.
Nxf7 {[%clk 00:08:09]} {[%emt 00:00:15]} Rxf7 {[%clk 00:06:49]} {[%emt
00:00:05]} 10. Qxf7+ {[%clk 00:08:17]} {[%emt 00:00:02]} Kh8 {[%clk 00:06:57]}
{[%emt 00:00:01]} 11. O-O {[%clk 00:08:12]} {[%emt 00:00:15]} Bg6 {[%clk
00:07:04]} {[%emt 00:00:03]} 12. Qf3 {[%clk 00:08:19]} {[%emt 00:00:03]} Nbc6
{[%clk 00:07:12]} {[%emt 00:00:03]} 13. Be3 {[%clk 00:08:23]} {[%emt 00:00:05]}
Qd7 {[%clk 00:07:05]} {[%emt 00:00:18]} 14. Nc3 {[%clk 00:08:27]} {[%emt
00:00:06]} a6 {[%clk 00:07:10]} {[%emt 00:00:05]} 15. Rad1 {[%clk 00:08:21]}
{[%emt 00:00:15]} Nf5 {[%clk 00:07:18]} {[%emt 00:00:02]} 16. Bd3 {[%clk
00:08:10]} {[%emt 00:00:20]} Rf8 {[%clk 00:07:06]} {[%emt 00:00:23]} 17. Qh3
{[%clk 00:08:17]} {[%emt 00:00:02]} Qe7 {[%clk 00:06:29]} {[%emt 00:00:47]} 18.
Nd5 {[%clk 00:07:55]} {[%emt 00:00:33]} Qf7 {[%clk 00:05:59]} {[%emt 00:00:40]}
19. Nf4 {[%clk 00:07:31]} {[%emt 00:00:33]} Bxf4 {[%clk 00:05:40]} {[%emt
00:00:30]} 20. Bxf4 {[%clk 00:07:40]} {[%emt 00:00:01]} Nfxd4 {[%clk 00:02:26]}
{[%emt 00:03:24]} 21. Bxg6 {[%clk 00:07:27]} {[%emt 00:00:22]} Qxg6 {[%clk
00:02:35]} 22. Bxc7 {[%clk 00:07:21]} {[%emt 00:00:17]} Qc2 {[%clk 00:01:43]}
{[%emt 00:01:02]} 23. Qe3 {[%clk 00:06:17]} {[%emt 00:01:14]} Nf5 {[%clk
00:01:27]} {[%emt 00:00:26]} 24. Qc3 {[%clk 00:05:47]} {[%emt 00:00:39]} Qe2
{[%clk 00:01:03]} {[%emt 00:00:33]} 25. Qc5 {[%clk 00:05:47]} {[%emt 00:00:10]}
Nce7 {[%clk 00:00:42]} {[%emt 00:00:32]} 26. Rde1 {[%clk 00:05:40]} {[%emt
00:00:18]} Qxb2 {[%clk 00:00:11]} {[%emt 00:00:41]} 27. Rxe7 {[%clk 00:05:39]}
{[%emt 00:00:10]} Qf6 {[%clk 00:00:00]} {[%emt 00:00:12]} 1-0

[Event "Couzeix rapide 9 rondes cadences multiples"]
[Site "Couzeix Chess Club, France"]
[Date "2019.03.10"]
[Round "4.3"]
[White "Jackson, Edgar"]
[Black "Charles, Simon"]
[Result "1-0"]
[TimeControl "5'+10''pm,  7'+10''pm, 10'+10''pm,"]
[WhiteElo "1701"]
[BlackElo "1754"]

1. d4 {[%clk 00:07:19]} Nf6 {[%clk 00:07:14]} {[%emt 00:00:07]} 2. Bg5 {[%clk
00:07:28]} d6 {[%clk 00:07:02]} {[%emt 00:00:22]} 3. Bxf6 {[%clk 00:07:22]}
{[%emt 00:00:16]} gxf6 {[%clk 00:06:57]} {[%emt 00:00:15]} 4. c4 {[%clk
00:07:24]} {[%emt 00:00:08]} e5 {[%clk 00:06:55]} {[%emt 00:00:11]} 5. e3
{[%clk 00:07:14]} {[%emt 00:00:20]} Bf5 {[%clk 00:06:56]} {[%emt 00:00:10]} 6.
Bd3 {[%clk 00:07:13]} {[%emt 00:00:11]} Bg6 {[%emt 00:00:37]} 7. Ne2 {[%clk
00:06:42]} {[%emt 00:00:20]} Nc6 {[%clk 00:06:32]} {[%emt 00:00:29]} 8. h4
{[%clk 00:06:41]} {[%emt 00:00:10]} e4 {[%clk 00:06:27]} {[%emt 00:00:16]} 9.
Bc2 {[%clk 00:06:43]} {[%emt 00:00:07]} h5 {[%clk 00:06:11]} {[%emt 00:00:26]}
10. Ng3 {[%clk 00:06:33]} {[%emt 00:00:19]} f5 {[%clk 00:06:05]} {[%emt
00:00:17]} 11. Nc3 {[%clk 00:05:37]} {[%emt 00:01:06]} Be7 {[%clk 00:05:25]}
{[%emt 00:00:50]} 12. Nd5 {[%clk 00:05:41]} {[%emt 00:00:05]} Kd7 {[%clk
00:03:06]} {[%emt 00:02:30]} 13. Nxe7 {[%clk 00:05:09]} {[%emt 00:00:42]} Qxe7
{[%clk 00:03:08]} {[%emt 00:00:08]} 14. Ba4 {[%clk 00:04:58]} {[%emt 00:00:22]}
Kd8 {[%clk 00:03:06]} {[%emt 00:00:12]} 15. Bxc6 {[%clk 00:03:18]} {[%emt
00:01:49]} bxc6 {[%clk 00:03:14]} {[%emt 00:00:02]} 16. Qa4 {[%clk 00:03:17]}
{[%emt 00:00:10]} Qd7 {[%clk 00:03:05]} {[%emt 00:00:19]} 17. Ne2 {[%clk
00:03:14]} {[%emt 00:00:11]} f6 {[%clk 00:03:13]} {[%emt 00:00:04]} 18. c5
{[%clk 00:02:34]} {[%emt 00:00:50]} d5 {[%clk 00:01:45]} {[%emt 00:01:38]} 19.
Nf4 {[%clk 00:02:30]} {[%emt 00:00:13]} Bf7 {[%clk 00:01:53]} {[%emt 00:00:02]}
20. O-O {[%clk 00:02:07]} {[%emt 00:00:33]} Ke7 {[%clk 00:01:42]} {[%emt
00:00:21]} 21. b4 {[%clk 00:02:00]} {[%emt 00:00:17]} Rhb8 {[%clk 00:01:26]}
{[%emt 00:00:27]} 22. Rab1 {[%clk 00:01:32]} {[%emt 00:00:38]} Rb5 {[%clk
00:01:26]} {[%emt 00:00:10]} 23. Qd1 {[%clk 00:01:13]} {[%emt 00:00:28]} a5
{[%clk 00:01:20]} {[%emt 00:00:18]} 24. a3 {[%clk 00:00:24]} {[%emt 00:00:59]}
axb4 {[%clk 00:01:01]} {[%emt 00:00:29]} 25. axb4 {[%clk 00:00:31]} {[%emt
00:00:02]} Qc8 {[%clk 00:01:08]} {[%emt 00:00:04]} 26. Nxh5 {[%clk 00:00:23]}
{[%emt 00:00:18]} Qh8 {[%clk 00:01:16]} {[%emt 00:00:03]} 27. Ng3 {[%clk
00:00:24]} {[%emt 00:00:08]} Ke6 {[%clk 00:01:11]} {[%emt 00:00:15]} 28. f3
{[%clk 00:00:17]} {[%emt 00:00:17]} Qxh4 {[%clk 00:01:07]} {[%emt 00:00:14]} 29.
Ne2 {[%clk 00:00:22]} {[%emt 00:00:06]} Rg8 {[%clk 00:00:48]} {[%emt 00:00:29]}
30. fxe4 {[%clk 00:00:19]} {[%emt 00:00:13]} Qxe4 {[%clk 00:00:56]} {[%emt
00:00:01]} 31. Nf4+ {[%clk 00:00:23]} {[%emt 00:00:06]} Kd7 {[%clk 00:01:04]}
{[%emt 00:00:02]} 32. Qf3 {[%clk 00:00:27]} {[%emt 00:00:05]} Rbb8 {[%clk
00:01:04]} {[%emt 00:00:12]} 33. Qxe4 {[%clk 00:00:23]} {[%emt 00:00:14]} fxe4
{[%clk 00:01:11]} {[%emt 00:00:02]} 34. Ne2 {[%clk 00:00:18]} {[%emt 00:00:15]}
Rg6 {[%clk 00:01:11]} {[%emt 00:00:11]} 35. Rf2 {[%clk 00:00:25]} {[%emt
00:00:03]} Be6 {[%clk 00:01:15]} {[%emt 00:00:07]} 36. Nf4 {[%clk 00:00:30]}
{[%emt 00:00:04]} Rg3 {[%clk 00:01:14]} {[%emt 00:00:08]} 37. Rb3 {[%clk
00:00:24]} {[%emt 00:00:19]} f5 {[%clk 00:01:16]} {[%emt 00:00:08]} 38. Kh2
{[%clk 00:00:27]} {[%emt 00:00:07]} Rg4 {[%clk 00:01:22]} {[%emt 00:00:03]} 39.
Kg1 {[%clk 00:00:34]} {[%emt 00:00:04]} Rbg8 {[%clk 00:01:31]} {[%emt
00:00:02]} 40. b5 {[%clk 00:00:43]} {[%emt 00:00:02]} cxb5 {[%clk 00:01:36]}
{[%emt 00:00:05]} 41. Rxb5 {[%clk 00:00:51]} {[%emt 00:00:01]} Ra8 {[%clk
00:01:36]} {[%emt 00:00:10]} 42. Rb1 {[%clk 00:00:50]} {[%emt 00:00:08]} Ra3
{[%clk 00:01:45]} {[%emt 00:00:05]} 43. c6+ {[%clk 00:00:59]} Kd6 {[%clk
00:01:47]} {[%emt 00:00:07]} 44. Kh2 {[%clk 00:00:57]} {[%emt 00:00:13]} Rxe3
{[%clk 00:01:53]} {[%emt 00:00:03]} 45. Rb8 {[%clk 00:00:55]} {[%emt 00:00:11]}
Bf7 {[%clk 00:02:02]} {[%emt 00:00:02]} 46. Rf8 {[%clk 00:00:59]} {[%emt
00:00:06]} Rg7 {[%clk 00:02:09]} {[%emt 00:00:03]} 47. Ne2 {[%clk 00:00:49]}
{[%emt 00:00:20]} Bg6 {[%clk 00:02:08]} {[%emt 00:00:11]} 48. Nf4 {[%clk
00:00:49]} {[%emt 00:00:10]} Bh7 {[%clk 00:02:09]} {[%emt 00:00:09]} 49. Rf6+
{[%clk 00:00:53]} {[%emt 00:00:05]} Ke7 {[%clk 00:02:16]} {[%emt 00:00:04]} 50.
Nxd5+ {[%clk 00:00:51]} {[%emt 00:00:12]} Ke8 {[%clk 00:02:26]} 51. Nxe3 {[%clk
00:00:48]} {[%emt 00:00:13]} Bg8 {[%clk 00:02:29]} {[%emt 00:00:07]} 52. Nxf5
{[%clk 00:00:50]} {[%emt 00:00:07]} Rh7+ {[%clk 00:02:38]} {[%emt 00:00:01]} 53.
Kg1 {[%clk 00:00:59]} Bd5 {[%clk 00:02:47]} 54. Ne3 {[%clk 00:01:03]} {[%emt
00:00:05]} Bb3 {[%clk 00:02:53]} {[%emt 00:00:04]} 55. R2f4 {[%clk 00:00:54]}
{[%emt 00:00:19]} Ke7 {[%clk 00:03:02]} {[%emt 00:00:02]} 56. R6f5 {[%clk
00:00:54]} {[%emt 00:00:09]} Ba4 {[%clk 00:03:05]} {[%emt 00:00:08]} 57. Rxe4+
{[%clk 00:01:00]} {[%emt 00:00:03]} Kd6 {[%clk 00:03:14]} {[%emt 00:00:01]} 58.
Rf6# {[%clk 00:00:55]} {[%emt 00:00:15]} 1-0

[Event "Couzeix rapide 9 rondes cadences multiples"]
[Site "Couzeix Chess Club, France"]
[Date "2019.03.10"]
[Round "4.4"]
[White "Jackson, Thomas"]
[Black "Brun, Pierre"]
[Result "1/2-1/2"]
[TimeControl "5'+10''pm,  7'+10''pm, 10'+10''pm,"]
[WhiteElo "2106"]
[BlackElo "1684"]

1. d4 {[%clk 00:07:18]} {[%emt 00:00:01]} Nf6 {[%clk 00:07:19]} {[%emt
00:00:01]} 2. Nf3 {[%clk 00:07:27]} c5 {[%clk 00:07:26]} {[%emt 00:00:04]} 3.
d5 {[%clk 00:07:34]} {[%emt 00:00:03]} b5 {[%clk 00:07:35]} {[%emt 00:00:02]} 4.
g3 {[%clk 00:07:39]} {[%emt 00:00:04]} d6 {[%clk 00:07:42]} {[%emt 00:00:03]} 5.
Bg2 {[%clk 00:07:48]} Nbd7 {[%clk 00:07:50]} {[%emt 00:00:03]} 6. a4 {[%clk
00:07:55]} {[%emt 00:00:04]} Bb7 {[%clk 00:07:36]} {[%emt 00:00:23]} 7. axb5
{[%clk 00:07:52]} {[%emt 00:00:13]} g6 {[%clk 00:07:01]} {[%emt 00:00:45]} 8.
Nc3 {[%clk 00:08:00]} {[%emt 00:00:03]} Bg7 {[%clk 00:07:09]} {[%emt 00:00:02]}
9. O-O {[%clk 00:08:05]} {[%emt 00:00:04]} O-O {[%clk 00:07:14]} {[%emt
00:00:06]} 10. e4 {[%clk 00:08:13]} {[%emt 00:00:02]} Qb6 {[%clk 00:06:21]}
{[%emt 00:01:03]} 11. Nd2 {[%clk 00:08:17]} {[%emt 00:00:07]} Ne5 {[%clk
00:06:07]} {[%emt 00:00:24]} 12. h3 {[%clk 00:08:03]} {[%emt 00:00:24]} Qc7
{[%clk 00:05:53]} {[%emt 00:00:23]} 13. f4 {[%clk 00:08:06]} {[%emt 00:00:07]}
Ned7 {[%clk 00:06:02]} 14. Nc4 {[%clk 00:08:15]} {[%emt 00:00:01]} Nh5 {[%clk
00:05:58]} {[%emt 00:00:13]} 15. Kh2 {[%clk 00:08:19]} {[%emt 00:00:07]} a6
{[%clk 00:05:56]} {[%emt 00:00:12]} 16. g4 {[%clk 00:07:54]} {[%emt 00:00:34]}
Nhf6 {[%clk 00:06:00]} {[%emt 00:00:06]} 17. Bd2 {[%clk 00:07:48]} {[%emt
00:00:16]} Nb6 {[%clk 00:05:47]} {[%emt 00:00:23]} 18. Qe2 {[%clk 00:07:27]}
{[%emt 00:00:31]} Nfd7 {[%clk 00:05:33]} {[%emt 00:00:24]} 19. Na5 {[%clk
00:06:15]} {[%emt 00:01:22]} axb5 {[%clk 00:05:01]} {[%emt 00:00:42]} 20. Nxb5
{[%clk 00:06:03]} {[%emt 00:00:22]} Qc8 {[%clk 00:04:52]} {[%emt 00:00:19]} 21.
Bc3 {[%clk 00:05:55]} {[%emt 00:00:18]} Ba6 {[%clk 00:04:44]} {[%emt 00:00:18]}
22. Bxg7 {[%clk 00:05:57]} {[%emt 00:00:07]} Kxg7 {[%clk 00:04:52]} {[%emt
00:00:02]} 23. Rfb1 {[%clk 00:05:32]} {[%emt 00:00:35]} c4 {[%clk 00:04:47]}
{[%emt 00:00:16]} 24. Nc3 {[%clk 00:05:25]} {[%emt 00:00:17]} Nc5 {[%clk
00:04:39]} {[%emt 00:00:18]} 25. Qe3 {[%clk 00:05:28]} {[%emt 00:00:07]} Qc7
{[%clk 00:04:12]} {[%emt 00:00:37]} 26. Bf1 {[%clk 00:05:23]} {[%emt 00:00:15]}
e6 {[%clk 00:03:41]} {[%emt 00:00:41]} 27. Rd1 {[%clk 00:04:46]} {[%emt
00:00:47]} Rfe8 {[%clk 00:03:25]} {[%emt 00:00:26]} 28. Bg2 {[%clk 00:04:18]}
{[%emt 00:00:38]} exd5 {[%clk 00:02:34]} {[%emt 00:01:01]} 29. Qd4+ {[%clk
00:04:20]} {[%emt 00:00:09]} Kg8 {[%clk 00:02:37]} {[%emt 00:00:06]} 30. exd5
{[%clk 00:04:06]} {[%emt 00:00:24]} Bb7 {[%clk 00:01:59]} {[%emt 00:00:49]} 31.
Nxb7 {[%clk 00:03:39]} {[%emt 00:00:37]} Qxb7 {[%clk 00:01:58]} {[%emt
00:00:11]} 32. Re1 {[%clk 00:03:31]} {[%emt 00:00:17]} Nbd7 {[%clk 00:01:18]}
{[%emt 00:00:50]} 33. Rxa8 {[%clk 00:03:02]} {[%emt 00:00:39]} Rxa8 {[%clk
00:01:25]} {[%emt 00:00:03]} 34. Ne4 {[%clk 00:02:27]} {[%emt 00:00:45]} Nxe4
{[%clk 00:01:12]} {[%emt 00:00:23]} 35. Bxe4 {[%clk 00:02:34]} {[%emt
00:00:04]} Nc5 {[%clk 00:01:18]} {[%emt 00:00:04]} 36. Bg2 {[%clk 00:02:39]}
{[%emt 00:00:05]} Rb8 {[%clk 00:01:13]} {[%emt 00:00:16]} 37. Qxc4 {[%clk
00:02:22]} {[%emt 00:00:27]} Qxb2 {[%clk 00:01:21]} {[%emt 00:00:01]} 38. c3
{[%clk 00:02:01]} {[%emt 00:00:31]} Qd2 {[%clk 00:01:05]} {[%emt 00:00:26]} 39.
Re2 {[%clk 00:01:59]} {[%emt 00:00:12]} Qd3 {[%clk 00:01:10]} {[%emt 00:00:04]}
40. Qxd3 {[%clk 00:01:39]} {[%emt 00:00:30]} Nxd3 {[%clk 00:01:19]} {[%emt
00:00:01]} 41. Kg3 {[%clk 00:01:33]} {[%emt 00:00:15]} Kf8 {[%clk 00:01:09]}
{[%emt 00:00:21]} 42. Re3 {[%clk 00:01:30]} {[%emt 00:00:14]} Nc5 {[%clk
00:01:12]} {[%emt 00:00:06]} 43. Bf1 {[%clk 00:01:31]} {[%emt 00:00:09]} Re8
{[%clk 00:01:21]} {[%emt 00:00:02]} 44. Rxe8+ {[%clk 00:01:26]} {[%emt
00:00:15]} Kxe8 {[%clk 00:01:30]} {[%emt 00:00:01]} 45. Bb5+ {[%clk 00:01:34]}
{[%emt 00:00:01]} Ke7 {[%clk 00:01:39]} {[%emt 00:00:01]} 46. c4 {[%clk
00:01:44]} f6 {[%clk 00:01:46]} {[%emt 00:00:03]} 47. h4 {[%clk 00:01:48]}
{[%emt 00:00:05]} h6 {[%clk 00:01:53]} {[%emt 00:00:03]} 48. Kf3 {[%clk
00:01:55]} {[%emt 00:00:04]} g5 {[%clk 00:01:58]} {[%emt 00:00:06]} 49. hxg5
{[%clk 00:01:07]} {[%emt 00:00:58]} hxg5 {[%clk 00:02:06]} {[%emt 00:00:02]} 50.
f5 {[%clk 00:01:16]} {[%emt 00:00:01]} 1/2-1/2

[Event "Couzeix rapide 9 rondes cadences multiples"]
[Site "Couzeix Chess Club, France"]
[Date "2019.03.10"]
[Round "5.1"]
[White "Dubreuil, Remy"]
[Black "Girel, Joseph"]
[Result "0-1"]
[TimeControl "5'+10''pm,  7'+10''pm, 10'+10''pm,"]
[WhiteElo "1714"]
[BlackElo "2220"]

1. b3 {[%clk 00:07:17]} {[%emt 00:00:02]} g6 {[%clk 00:06:54]} {[%emt
00:00:27]} 2. Bb2 {[%clk 00:07:24]} {[%emt 00:00:03]} Nf6 {[%clk 00:07:02]}
{[%emt 00:00:02]} 3. Nf3 {[%clk 00:07:30]} {[%emt 00:00:03]} Bg7 {[%clk
00:07:08]} {[%emt 00:00:04]} 4. e3 {[%clk 00:07:37]} {[%emt 00:00:03]} d6
{[%clk 00:07:16]} {[%emt 00:00:02]} 5. c4 {[%clk 00:07:39]} {[%emt 00:00:09]}
O-O {[%clk 00:07:22]} {[%emt 00:00:04]} 6. Be2 {[%clk 00:07:46]} {[%emt
00:00:02]} e5 {[%clk 00:07:28]} {[%emt 00:00:04]} 7. d3 {[%clk 00:07:45]}
{[%emt 00:00:11]} Nc6 {[%clk 00:07:36]} {[%emt 00:00:03]} 8. Nbd2 {[%clk
00:07:47]} {[%emt 00:00:07]} h6 {[%clk 00:07:28]} {[%emt 00:00:18]} 9. O-O
{[%clk 00:07:53]} {[%emt 00:00:04]} Nh7 {[%clk 00:07:31]} {[%emt 00:00:07]} 10.
d4 {[%clk 00:06:24]} {[%emt 00:01:39]} exd4 {[%clk 00:07:34]} {[%emt 00:00:07]}
11. exd4 {[%clk 00:06:25]} {[%emt 00:00:08]} Ng5 {[%clk 00:07:37]} {[%emt
00:00:08]} 12. Qc1 {[%clk 00:06:17]} {[%emt 00:00:17]} Re8 {[%clk 00:07:35]}
{[%emt 00:00:14]} 13. Re1 {[%clk 00:06:15]} {[%emt 00:00:11]} Qf6 {[%clk
00:07:07]} {[%emt 00:00:38]} 14. Nxg5 {[%clk 00:03:46]} {[%emt 00:02:38]} hxg5
{[%clk 00:07:12]} {[%emt 00:00:06]} 15. Bf3 {[%clk 00:01:11]} {[%emt 00:02:44]}
Bf5 {[%clk 00:06:48]} {[%emt 00:00:35]} 16. Bxc6 {[%clk 00:01:06]} {[%emt
00:00:15]} bxc6 {[%clk 00:06:54]} {[%emt 00:00:05]} 17. Nf1 {[%clk 00:00:53]}
{[%emt 00:00:22]} c5 {[%clk 00:06:47]} {[%emt 00:00:17]} 18. Ne3 {[%clk
00:00:23]} {[%emt 00:00:40]} Be4 {[%emt 00:01:52]} 19. Rd1 {[%clk 00:07:10]}
{[%emt 00:00:08]} 0-1